[Event "Late-Titled-Tuesday-Blitz-March-05-2024"]
[Site "Chess.com"]
[Date "2024.03.05"]
[Round "2"]
[White "GianmarcoVaR"]
[Black "jup1978"]
[Result "1-0"]
[WhiteElo "2777"]
[BlackElo "2429"]
[TimeControl "180+1"]
[EndTime "14:16:13 PST"]
[Termination "GianmarcoVaR won by resignation"]

1. e4 {[%clk 0:02:48.5]} 1... e5 {[%clk 0:02:58]} 2. Nf3 {[%clk 0:02:48.5]} 2...
Nf6 {[%clk 0:02:58.4]} 3. Nxe5 {[%clk 0:02:46.6]} 3... d6 {[%clk 0:02:58.9]} 4.
Nf3 {[%clk 0:02:46.6]} 4... Nxe4 {[%clk 0:02:59.3]} 5. c4 {[%clk 0:02:47.3]}
5... d5 {[%clk 0:02:40]} 6. Nc3 {[%clk 0:02:39.9]} 6... Nxc3 {[%clk 0:02:34.6]}
7. dxc3 {[%clk 0:02:40.2]} 7... c6 {[%clk 0:02:25.8]} 8. Bg5 {[%clk 0:02:35.6]}
8... Be7 {[%clk 0:02:24.7]} 9. Bxe7 {[%clk 0:02:23.6]} 9... Qxe7+ {[%clk
0:02:25.6]} 10. Qe2 {[%clk 0:02:22.1]} 10... Qxe2+ {[%clk 0:02:22]} 11. Bxe2
{[%clk 0:02:23]} 11... dxc4 {[%clk 0:02:21.8]} 12. Bxc4 {[%clk 0:02:23.2]} 12...
O-O {[%clk 0:02:22.1]} 13. O-O-O {[%clk 0:02:23.8]} 13... Nd7 {[%clk 0:02:17.1]}
14. Rhe1 {[%clk 0:02:22.9]} 14... Nb6 {[%clk 0:02:14.4]} 15. Bb3 {[%clk
0:02:23.5]} 15... Bg4 {[%clk 0:02:06.7]} 16. Re7 {[%clk 0:02:23.9]} 16... Rab8
{[%clk 0:01:59.2]} 17. Rd3 {[%clk 0:02:17.3]} 17... Bh5 {[%clk 0:01:58.6]} 18.
Ne5 {[%clk 0:01:57.1]} 18... a5 {[%clk 0:01:39.9]} 19. g4 {[%clk 0:01:51.9]}
19... Bg6 {[%clk 0:01:34.3]} 20. Rf3 {[%clk 0:01:48.3]} 20... Nd5 {[%clk
0:01:26.5]} 21. Bxd5 {[%clk 0:01:47.3]} 21... cxd5 {[%clk 0:01:27.4]} 22. Nd7
{[%clk 0:01:36.2]} 22... Rfe8 {[%clk 0:01:22]} 23. Rfe3 {[%clk 0:01:34.1]} 23...
Rxe7 {[%clk 0:01:20.6]} 24. Rxe7 {[%clk 0:01:34.1]} 24... Rd8 {[%clk 0:01:16.9]}
25. Ne5 {[%clk 0:01:32.5]} 25... b5 {[%clk 0:01:16.7]} 26. Ra7 {[%clk
0:01:27.5]} 26... h5 {[%clk 0:01:13.7]} 27. Nxg6 {[%clk 0:01:07.5]} 27... fxg6
{[%clk 0:01:14.6]} 28. gxh5 {[%clk 0:01:08.3]} 28... gxh5 {[%clk 0:01:13.1]} 29.
Rxa5 {[%clk 0:01:09.2]} 29... d4 {[%clk 0:01:12.6]} 30. cxd4 {[%clk 0:01:06.7]}
30... Rxd4 {[%clk 0:01:11.9]} 31. Rxb5 {[%clk 0:01:06.1]} 31... Rh4 {[%clk
0:01:12.3]} 32. b4 {[%clk 0:00:59.7]} 32... Rxh2 {[%clk 0:01:13.2]} 33. a4
{[%clk 0:01:00.4]} 33... h4 {[%clk 0:01:11]} 34. a5 {[%clk 0:00:57]} 34... Rxf2
{[%clk 0:01:08.8]} 35. a6 {[%clk 0:00:57.7]} 35... h3 {[%clk 0:01:07.6]} 36. a7
{[%clk 0:00:57.7]} 36... Ra2 {[%clk 0:01:01.1]} 37. Ra5 {[%clk 0:00:57.8]} 37...
Rxa5 {[%clk 0:00:56.6]} 38. bxa5 {[%clk 0:00:57.6]} 1-0

[Event "Late-Titled-Tuesday-Blitz-March-05-2024"]
[Site "Chess.com"]
[Date "2024.03.05"]
[Round "2"]
[White "Bkmzzzzz"]
[Black "PattyCastillo"]
[Result "0-1"]
[WhiteElo "2411"]
[BlackElo "2027"]
[TimeControl "180+1"]
[EndTime "14:16:14 PST"]
[Termination "PattyCastillo won by resignation"]

1. e4 {[%clk 0:03:00.9]} 1... c5 {[%clk 0:02:59.4]} 2. Nf3 {[%clk 0:03:00.8]}
2... d6 {[%clk 0:02:59.2]} 3. d4 {[%clk 0:03:00.7]} 3... cxd4 {[%clk 0:02:59.1]}
4. Qxd4 {[%clk 0:03:01.6]} 4... Nf6 {[%clk 0:02:58.3]} 5. Nc3 {[%clk 0:03:01]}
5... Nc6 {[%clk 0:02:55.2]} 6. Bb5 {[%clk 0:03:01.1]} 6... Bd7 {[%clk
0:02:55.9]} 7. Qd2 {[%clk 0:03:01.6]} 7... a6 {[%clk 0:02:55.1]} 8. Bxc6 {[%clk
0:02:54.1]} 8... Bxc6 {[%clk 0:02:56]} 9. Qd3 {[%clk 0:02:54.6]} 9... g6 {[%clk
0:02:52.2]} 10. Bg5 {[%clk 0:02:54.9]} 10... Bg7 {[%clk 0:02:52.5]} 11. O-O-O
{[%clk 0:02:54.5]} 11... O-O {[%clk 0:02:51.6]} 12. h4 {[%clk 0:02:45.9]} 12...
Rc8 {[%clk 0:02:47.1]} 13. Kb1 {[%clk 0:02:45.3]} 13... b5 {[%clk 0:02:47.1]}
14. Nd5 {[%clk 0:02:39.4]} 14... Bxd5 {[%clk 0:02:38.6]} 15. exd5 {[%clk
0:02:40.3]} 15... Qc7 {[%clk 0:02:36.9]} 16. Rhe1 {[%clk 0:02:13.8]} 16... Rfe8
{[%clk 0:02:34.4]} 17. Nd2 {[%clk 0:02:08.3]} 17... h6 {[%clk 0:02:21.2]} 18.
Be3 {[%clk 0:01:58.4]} 18... Ng4 {[%clk 0:01:39.9]} 19. f3 {[%clk 0:01:37.5]}
19... Nxe3 {[%clk 0:01:36]} 20. Rxe3 {[%clk 0:01:38.4]} 20... Qc5 {[%clk
0:01:31.1]} 21. Nb3 {[%clk 0:01:18.9]} 21... Qb6 {[%clk 0:01:22.4]} 22. Rde1
{[%clk 0:01:17.2]} 22... Rc7 {[%clk 0:01:11.4]} 23. g4 {[%clk 0:00:48.5]} 23...
Rec8 {[%clk 0:01:09.2]} 24. Rxe7 {[%clk 0:00:44.7]} 24... Rxc2 {[%clk
0:00:59.1]} 25. h5 {[%clk 0:00:41.9]} 25... Rxb2+ {[%clk 0:00:57.1]} 0-1

[Event "Late-Titled-Tuesday-Blitz-March-05-2024"]
[Site "Chess.com"]
[Date "2024.03.05"]
[Round "2"]
[White "jamengrand"]
[Black "JaackCamel"]
[Result "1-0"]
[WhiteElo "2487"]
[BlackElo "2207"]
[TimeControl "180+1"]
[EndTime "14:16:19 PST"]
[Termination "jamengrand won by checkmate"]

1. e4 {[%clk 0:03:00.3]} 1... e6 {[%clk 0:02:59.4]} 2. d4 {[%clk 0:02:59.5]}
2... d5 {[%clk 0:02:59.1]} 3. e5 {[%clk 0:03:00.2]} 3... c5 {[%clk 0:02:58.1]}
4. c3 {[%clk 0:03:00.7]} 4... Nc6 {[%clk 0:02:56.3]} 5. Nf3 {[%clk 0:03:00.7]}
5... Qb6 {[%clk 0:02:53.9]} 6. Bd3 {[%clk 0:03:01.3]} 6... cxd4 {[%clk
0:02:52.8]} 7. O-O {[%clk 0:03:01.2]} 7... Bd7 {[%clk 0:02:51.6]} 8. a3 {[%clk
0:02:59.4]} 8... Rc8 {[%clk 0:02:45.7]} 9. b4 {[%clk 0:02:58.1]} 9... a6 {[%clk
0:02:41.3]} 10. Bb2 {[%clk 0:02:57.5]} 10... dxc3 {[%clk 0:02:36]} 11. Nxc3
{[%clk 0:02:58.4]} 11... Na5 {[%clk 0:02:17.5]} 12. bxa5 {[%clk 0:02:42.4]}
12... Qxb2 {[%clk 0:02:16.3]} 13. Na4 {[%clk 0:02:42.6]} 13... Qxa1 {[%clk
0:01:24]} 14. Qxa1 {[%clk 0:02:37.8]} 14... Bxa4 {[%clk 0:01:23.6]} 15. Rc1
{[%clk 0:02:35]} 15... Bc6 {[%clk 0:01:17.1]} 16. Qb2 {[%clk 0:02:22.9]} 16...
f6 {[%clk 0:01:13.4]} 17. Qb6 {[%clk 0:02:16.9]} 17... Ne7 {[%clk 0:01:08.8]}
18. exf6 {[%clk 0:01:54.9]} 18... gxf6 {[%clk 0:01:08.3]} 19. Nd4 {[%clk
0:01:55]} 19... Kf7 {[%clk 0:01:07.4]} 20. Nxc6 {[%clk 0:01:54.7]} 20... bxc6
{[%clk 0:01:00.9]} 21. Bxa6 {[%clk 0:01:52.2]} 21... Ra8 {[%clk 0:00:53.3]} 22.
Bb7 {[%clk 0:01:51.9]} 22... Rb8 {[%clk 0:00:51.6]} 23. a6 {[%clk 0:01:51.7]}
23... Bh6 {[%clk 0:00:50.9]} 24. Rb1 {[%clk 0:01:48.4]} 24... Rhe8 {[%clk
0:00:17.1]} 25. a7 {[%clk 0:01:47.1]} 25... Rbd8 {[%clk 0:00:11.3]} 26. Bxc6
{[%clk 0:01:42.4]} 26... Nxc6 {[%clk 0:00:10.1]} 27. Qxc6 {[%clk 0:01:42.4]}
27... Bf4 {[%clk 0:00:09.3]} 28. Rb7+ {[%clk 0:01:39.7]} 28... Kg6 {[%clk
0:00:09.1]} 29. g3 {[%clk 0:01:38.5]} 29... Rc8 {[%clk 0:00:08.6]} 30. Qd7
{[%clk 0:01:29.3]} 30... Be5 {[%clk 0:00:07.2]} 31. Qxh7+ {[%clk 0:01:27.8]}
31... Kg5 {[%clk 0:00:06.7]} 32. Rg7# {[%clk 0:01:26.8]} 1-0

[Event "Late-Titled-Tuesday-Blitz-March-05-2024"]
[Site "Chess.com"]
[Date "2024.03.05"]
[Round "2"]
[White "Sajkochess"]
[Black "chegueps"]
[Result "0-1"]
[WhiteElo "2335"]
[BlackElo "2663"]
[TimeControl "180+1"]
[EndTime "14:16:21 PST"]
[Termination "chegueps won by resignation"]

1. e4 {[%clk 0:03:00.9]} 1... Nf6 {[%clk 0:02:56.7]} 2. e5 {[%clk 0:03:00.8]}
2... Nd5 {[%clk 0:02:56.9]} 3. d4 {[%clk 0:02:58.4]} 3... d6 {[%clk 0:02:56.8]}
4. c4 {[%clk 0:02:58.3]} 4... Nb6 {[%clk 0:02:57]} 5. exd6 {[%clk 0:02:58.1]}
5... cxd6 {[%clk 0:02:55.8]} 6. Nc3 {[%clk 0:02:57.7]} 6... g6 {[%clk
0:02:54.9]} 7. Be3 {[%clk 0:02:57.6]} 7... Bg7 {[%clk 0:02:55.3]} 8. h3 {[%clk
0:02:53.9]} 8... O-O {[%clk 0:02:54.7]} 9. Nf3 {[%clk 0:02:54.2]} 9... Nc6
{[%clk 0:02:48.4]} 10. Be2 {[%clk 0:02:52.7]} 10... d5 {[%clk 0:02:47.2]} 11. c5
{[%clk 0:02:20.1]} 11... Nc4 {[%clk 0:02:44.6]} 12. Bxc4 {[%clk 0:02:20.3]}
12... dxc4 {[%clk 0:02:45.5]} 13. d5 {[%clk 0:02:20.4]} 13... Nb4 {[%clk
0:02:42.8]} 14. Bd4 {[%clk 0:01:50.1]} 14... Nd3+ {[%clk 0:02:37.7]} 15. Kf1
{[%clk 0:01:49.9]} 15... Bxd4 {[%clk 0:02:08.9]} 16. Nxd4 {[%clk 0:01:48.7]}
16... Nxb2 {[%clk 0:02:09]} 17. Qe2 {[%clk 0:01:48.4]} 17... Nd3 {[%clk
0:02:09.9]} 18. c6 {[%clk 0:01:09.2]} 18... Qb6 {[%clk 0:02:03.5]} 19. cxb7
{[%clk 0:00:21.7]} 19... Bxb7 {[%clk 0:01:50.2]} 20. Nc2 {[%clk 0:00:13.4]}
20... Qf6 {[%clk 0:01:41]} 21. Rb1 {[%clk 0:00:09.4]} 21... Qxc3 {[%clk
0:01:37.2]} 22. Rxb7 {[%clk 0:00:09.4]} 22... Rab8 {[%clk 0:01:25.9]} 23. Rxb8
{[%clk 0:00:08]} 23... Rxb8 {[%clk 0:01:26.8]} 24. g3 {[%clk 0:00:04.5]} 24...
Rb2 {[%clk 0:01:26.5]} 25. Qxe7 {[%clk 0:00:03.6]} 25... Rxc2 {[%clk 0:01:22.4]}
26. d6 {[%clk 0:00:01.3]} 26... Rxf2+ {[%clk 0:01:21.3]} 27. Kg1 {[%clk
0:00:01.8]} 0-1

[Event "Late-Titled-Tuesday-Blitz-March-05-2024"]
[Site "Chess.com"]
[Date "2024.03.05"]
[Round "2"]
[White "Eliwood44"]
[Black "jactorres"]
[Result "1-0"]
[WhiteElo "2507"]
[BlackElo "2277"]
[TimeControl "180+1"]
[EndTime "14:16:21 PST"]
[Termination "Eliwood44 won on time"]

1. d4 {[%clk 0:02:55.8]} 1... Nf6 {[%clk 0:02:56.3]} 2. c4 {[%clk 0:02:53.3]}
2... e6 {[%clk 0:02:55.9]} 3. Nc3 {[%clk 0:02:47.9]} 3... Bb4 {[%clk 0:02:54.4]}
4. Qc2 {[%clk 0:02:43.9]} 4... O-O {[%clk 0:02:36.4]} 5. Nf3 {[%clk 0:02:43.1]}
5... b6 {[%clk 0:02:21.9]} 6. e4 {[%clk 0:02:19.1]} 6... d6 {[%clk 0:01:41.6]}
7. e5 {[%clk 0:02:13.9]} 7... dxe5 {[%clk 0:01:16.9]} 8. dxe5 {[%clk 0:02:14.8]}
8... Bxc3+ {[%clk 0:01:14.3]} 9. bxc3 {[%clk 0:02:13.5]} 9... Nfd7 {[%clk
0:01:13.8]} 10. Qe4 {[%clk 0:02:08]} 10... c6 {[%clk 0:01:12.1]} 11. Bd3 {[%clk
0:02:07.6]} 11... g6 {[%clk 0:01:10.4]} 12. Be3 {[%clk 0:02:05.4]} 12... Na6
{[%clk 0:01:08.9]} 13. Bc2 {[%clk 0:01:58.1]} 13... Bb7 {[%clk 0:01:01.1]} 14.
Rd1 {[%clk 0:01:55.2]} 14... Qe7 {[%clk 0:00:55.9]} 15. h4 {[%clk 0:01:31.7]}
15... Ndc5 {[%clk 0:00:43.3]} 16. Qf4 {[%clk 0:01:25.4]} 16... Rfd8 {[%clk
0:00:29.6]} 17. Rd4 {[%clk 0:01:24.5]} 17... Rd7 {[%clk 0:00:10.4]} 18. h5
{[%clk 0:01:20.7]} 18... Rad8 {[%clk 0:00:09.4]} 19. Ng5 {[%clk 0:01:15.7]}
19... Nc7 {[%clk 0:00:02.8]} 20. hxg6 {[%clk 0:01:14.1]} 20... fxg6 {[%clk
0:00:02.3]} 21. Rxh7 {[%clk 0:01:12.8]} 21... Qe8 {[%clk 0:00:02.1]} 22. Qh4
{[%clk 0:01:09.3]} 1-0

[Event "Late-Titled-Tuesday-Blitz-March-05-2024"]
[Site "Chess.com"]
[Date "2024.03.05"]
[Round "2"]
[White "NikolaGry"]
[Black "ThaBarWa"]
[Result "1-0"]
[WhiteElo "2713"]
[BlackElo "2398"]
[TimeControl "180+1"]
[EndTime "14:16:22 PST"]
[Termination "NikolaGry won by resignation"]

1. e4 {[%clk 0:02:45]} 1... c5 {[%clk 0:02:59.1]} 2. Nf3 {[%clk 0:02:44.6]} 2...
d6 {[%clk 0:02:59]} 3. Bb5+ {[%clk 0:02:44.4]} 3... Nd7 {[%clk 0:02:57.9]} 4.
O-O {[%clk 0:02:43.8]} 4... Nf6 {[%clk 0:02:51.6]} 5. Re1 {[%clk 0:02:43.3]}
5... a6 {[%clk 0:02:51.9]} 6. Bf1 {[%clk 0:02:42.7]} 6... e5 {[%clk 0:02:29.3]}
7. c3 {[%clk 0:02:42.2]} 7... Be7 {[%clk 0:02:29.7]} 8. d4 {[%clk 0:02:42]} 8...
O-O {[%clk 0:02:22.5]} 9. a4 {[%clk 0:02:41.9]} 9... b6 {[%clk 0:02:15.2]} 10.
dxe5 {[%clk 0:02:36.8]} 10... dxe5 {[%clk 0:02:13.7]} 11. Na3 {[%clk 0:02:36.7]}
11... Bb7 {[%clk 0:02:08.9]} 12. Qc2 {[%clk 0:02:36.3]} 12... Qc7 {[%clk
0:02:07.3]} 13. Bg5 {[%clk 0:02:29.9]} 13... h6 {[%clk 0:02:07.1]} 14. Bh4
{[%clk 0:02:29.6]} 14... Rfe8 {[%clk 0:01:59.6]} 15. Rad1 {[%clk 0:02:25.5]}
15... Bc6 {[%clk 0:01:43.5]} 16. Bc4 {[%clk 0:02:08.8]} 16... Nh5 {[%clk
0:01:21.5]} 17. Qb3 {[%clk 0:02:00.6]} 17... Bxh4 {[%clk 0:01:05]} 18. Bxf7+
{[%clk 0:01:58.2]} 18... Kh7 {[%clk 0:01:01.5]} 19. Bxh5 {[%clk 0:01:53.4]}
19... Bf6 {[%clk 0:00:46.9]} 20. Bxe8 {[%clk 0:01:46.6]} 20... Rxe8 {[%clk
0:00:47.8]} 21. Nd2 {[%clk 0:01:13.9]} 21... Rf8 {[%clk 0:00:42.1]} 22. Ndc4
{[%clk 0:01:09.9]} 22... Bh4 {[%clk 0:00:38.5]} 23. Rd2 {[%clk 0:01:04.9]} 23...
Bg5 {[%clk 0:00:38.2]} 24. Rde2 {[%clk 0:01:01.8]} 24... Nf6 {[%clk 0:00:39.1]}
25. Qxb6 {[%clk 0:00:58.9]} 25... Qd7 {[%clk 0:00:29.8]} 26. Nxe5 {[%clk
0:00:55.3]} 1-0

[Event "Late-Titled-Tuesday-Blitz-March-05-2024"]
[Site "Chess.com"]
[Date "2024.03.05"]
[Round "2"]
[White "The_Straightforward_Rook"]
[Black "ventdelest"]
[Result "1/2-1/2"]
[WhiteElo "2438"]
[BlackElo "2084"]
[TimeControl "180+1"]
[EndTime "14:16:25 PST"]
[Termination "Game drawn by repetition"]

1. e4 {[%clk 0:02:54.3]} 1... d6 {[%clk 0:02:59]} 2. d4 {[%clk 0:02:52.9]} 2...
Nf6 {[%clk 0:02:59.5]} 3. Bd3 {[%clk 0:02:52.3]} 3... e5 {[%clk 0:02:56.9]} 4.
c3 {[%clk 0:02:52.1]} 4... Be7 {[%clk 0:02:56.5]} 5. Nf3 {[%clk 0:02:51.8]} 5...
Nc6 {[%clk 0:02:54.5]} 6. h3 {[%clk 0:02:50.3]} 6... O-O {[%clk 0:02:53.7]} 7.
O-O {[%clk 0:02:49.5]} 7... exd4 {[%clk 0:02:51.9]} 8. cxd4 {[%clk 0:02:48.9]}
8... d5 {[%clk 0:02:52.5]} 9. e5 {[%clk 0:02:48.6]} 9... Ne4 {[%clk 0:02:52.9]}
10. Nc3 {[%clk 0:02:47.2]} 10... Nxc3 {[%clk 0:02:51.6]} 11. bxc3 {[%clk
0:02:47.2]} 11... Be6 {[%clk 0:02:51.6]} 12. Rb1 {[%clk 0:02:45.2]} 12... Rb8
{[%clk 0:02:48.3]} 13. Nh2 {[%clk 0:02:25.3]} 13... f5 {[%clk 0:02:41.5]} 14. f4
{[%clk 0:02:05.3]} 14... g6 {[%clk 0:02:37.9]} 15. Nf3 {[%clk 0:02:04.4]} 15...
Kg7 {[%clk 0:02:32.6]} 16. Qe2 {[%clk 0:01:59.8]} 16... a6 {[%clk 0:02:28.9]}
17. Kh1 {[%clk 0:01:50.9]} 17... Na5 {[%clk 0:02:26]} 18. Ng5 {[%clk 0:01:32.9]}
18... Bxg5 {[%clk 0:02:23.1]} 19. fxg5 {[%clk 0:01:33.8]} 19... b5 {[%clk
0:02:20.6]} 20. h4 {[%clk 0:01:30.5]} 20... Nc4 {[%clk 0:02:16.8]} 21. Bxc4
{[%clk 0:01:28.4]} 21... dxc4 {[%clk 0:02:13.5]} 22. Ba3 {[%clk 0:01:16.3]}
22... Rf7 {[%clk 0:02:08]} 23. Bc5 {[%clk 0:01:13.8]} 23... Qd5 {[%clk
0:02:03.3]} 24. Kh2 {[%clk 0:01:13.1]} 24... Rh8 {[%clk 0:01:59.4]} 25. Qf3
{[%clk 0:01:04.5]} 25... h6 {[%clk 0:01:57.5]} 26. Qxd5 {[%clk 0:01:03.9]} 26...
Bxd5 {[%clk 0:01:55.2]} 27. gxh6+ {[%clk 0:01:04.4]} 27... Rxh6 {[%clk
0:01:54.3]} 28. Kg3 {[%clk 0:01:04.3]} 28... f4+ {[%clk 0:01:46.5]} 29. Rxf4
{[%clk 0:01:03.2]} 29... Rxf4 {[%clk 0:01:46.1]} 30. Kxf4 {[%clk 0:01:04.1]}
30... Rxh4+ {[%clk 0:01:45.8]} 31. Kg3 {[%clk 0:01:03.6]} 31... Rh5 {[%clk
0:01:44.3]} 32. Rb2 {[%clk 0:01:02]} 32... Rg5+ {[%clk 0:01:42.4]} 33. Kh3
{[%clk 0:01:01.8]} 33... Rh5+ {[%clk 0:01:41.2]} 34. Kg4 {[%clk 0:01:01.7]}
34... Rh2 {[%clk 0:01:38.5]} 35. Kg3 {[%clk 0:01:01.4]} 35... Rh5 {[%clk
0:01:37.5]} 36. Be7 {[%clk 0:01:01.9]} 36... Kf7 {[%clk 0:01:28.2]} 37. Bf6
{[%clk 0:01:01]} 37... Ke6 {[%clk 0:01:27.8]} 38. Rf2 {[%clk 0:00:58]} 38... Rf5
{[%clk 0:01:27.2]} 39. Rxf5 {[%clk 0:00:54.8]} 39... Kxf5 {[%clk 0:01:26.5]} 40.
a3 {[%clk 0:00:53.5]} 40... c6 {[%clk 0:01:25.8]} 41. Kf2 {[%clk 0:00:53.3]}
41... Ke4 {[%clk 0:01:24.8]} 42. Ke2 {[%clk 0:00:50.7]} 42... Be6 {[%clk
0:01:24.7]} 43. g3 {[%clk 0:00:49.9]} 43... Bg4+ {[%clk 0:01:24]} 44. Kd2 {[%clk
0:00:49.6]} 44... Kf3 {[%clk 0:01:21.8]} 45. Bh4 {[%clk 0:00:49.8]} 45... Ke4
{[%clk 0:01:21.7]} 46. Bf6 {[%clk 0:00:49.8]} 46... Kf3 {[%clk 0:01:21.5]} 47.
Bh4 {[%clk 0:00:50.4]} 47... Ke4 {[%clk 0:01:21.5]} 48. Bf6 {[%clk 0:00:50.7]}
1/2-1/2

[Event "Late-Titled-Tuesday-Blitz-March-05-2024"]
[Site "Chess.com"]
[Date "2024.03.05"]
[Round "2"]
[White "SmirnovTimofey2000"]
[Black "KorolDimitriy75"]
[Result "0-1"]
[WhiteElo "1973"]
[BlackElo "2425"]
[TimeControl "180+1"]
[EndTime "14:16:26 PST"]
[Termination "KorolDimitriy75 won by checkmate"]

1. e4 {[%clk 0:03:00.9]} 1... c5 {[%clk 0:03:00.2]} 2. c3 {[%clk 0:03:00.7]}
2... d5 {[%clk 0:03:00.3]} 3. exd5 {[%clk 0:03:00.3]} 3... Qxd5 {[%clk
0:03:01.2]} 4. d4 {[%clk 0:03:00.4]} 4... cxd4 {[%clk 0:03:02.1]} 5. cxd4 {[%clk
0:02:59.6]} 5... Nc6 {[%clk 0:03:02.1]} 6. Nf3 {[%clk 0:02:59.9]} 6... e5 {[%clk
0:03:02.4]} 7. Nc3 {[%clk 0:02:59.1]} 7... Bb4 {[%clk 0:03:01.7]} 8. Bd2 {[%clk
0:02:58.1]} 8... Bxc3 {[%clk 0:03:01.7]} 9. Bxc3 {[%clk 0:02:56.3]} 9... e4
{[%clk 0:03:02]} 10. Ne5 {[%clk 0:02:40.8]} 10... Nxe5 {[%clk 0:03:01.8]} 11.
dxe5 {[%clk 0:02:40.6]} 11... Ne7 {[%clk 0:03:02.7]} 12. Qxd5 {[%clk 0:02:24.7]}
12... Nxd5 {[%clk 0:03:03.6]} 13. Bb5+ {[%clk 0:02:24.5]} 13... Bd7 {[%clk
0:03:03.5]} 14. Bxd7+ {[%clk 0:02:23.8]} 14... Kxd7 {[%clk 0:03:04.4]} 15. O-O-O
{[%clk 0:02:13.7]} 15... Ke6 {[%clk 0:03:03.7]} 16. Rhe1 {[%clk 0:02:07]} 16...
Rhc8 {[%clk 0:02:49.1]} 17. Rxe4 {[%clk 0:01:40.8]} 17... Nxc3 {[%clk
0:02:46.7]} 18. bxc3 {[%clk 0:01:41.7]} 18... Rxc3+ {[%clk 0:02:46.3]} 19. Kb2
{[%clk 0:01:42.3]} 19... Rac8 {[%clk 0:02:46.1]} 20. Rd2 {[%clk 0:01:31.4]}
20... R3c5 {[%clk 0:02:25.7]} 21. f4 {[%clk 0:01:28.7]} 21... Rb5+ {[%clk
0:01:38.9]} 22. Ka3 {[%clk 0:01:22.3]} 22... Rc6 {[%clk 0:01:24.8]} 23. Ka4
{[%clk 0:01:04.6]} 23... Rb1 {[%clk 0:01:09.2]} 24. Ka3 {[%clk 0:00:55.6]} 24...
b5 {[%clk 0:00:53.6]} 25. g4 {[%clk 0:00:41.6]} 25... Ra6+ {[%clk 0:00:53]} 26.
Ra4 {[%clk 0:00:24.1]} 26... Rxa4# {[%clk 0:00:52.9]} 0-1

[Event "Late-Titled-Tuesday-Blitz-March-05-2024"]
[Site "Chess.com"]
[Date "2024.03.05"]
[Round "2"]
[White "N_Mullodzhanov"]
[Black "BebeBonito2022"]
[Result "1-0"]
[WhiteElo "2523"]
[BlackElo "2309"]
[TimeControl "180+1"]
[EndTime "14:16:31 PST"]
[Termination "N_Mullodzhanov won by resignation"]

1. e4 {[%clk 0:03:00.9]} 1... e5 {[%clk 0:03:00]} 2. Nf3 {[%clk 0:03:00.9]} 2...
Nc6 {[%clk 0:03:00.2]} 3. Bc4 {[%clk 0:02:59.7]} 3... Nf6 {[%clk 0:02:59.7]} 4.
Nc3 {[%clk 0:02:56.8]} 4... Nxe4 {[%clk 0:02:59.4]} 5. Nxe4 {[%clk 0:02:55.5]}
5... d5 {[%clk 0:02:59.3]} 6. Bd3 {[%clk 0:02:53.4]} 6... dxe4 {[%clk
0:02:59.2]} 7. Bxe4 {[%clk 0:02:54.3]} 7... Bd6 {[%clk 0:02:59.6]} 8. Bxc6+
{[%clk 0:02:53.3]} 8... bxc6 {[%clk 0:02:59.4]} 9. O-O {[%clk 0:02:54.2]} 9...
O-O {[%clk 0:02:59.1]} 10. d3 {[%clk 0:02:52.8]} 10... Bg4 {[%clk 0:02:51.9]}
11. Re1 {[%clk 0:02:52.8]} 11... Qf6 {[%clk 0:02:50.6]} 12. h3 {[%clk
0:02:47.2]} 12... Bxf3 {[%clk 0:02:47.3]} 13. Qxf3 {[%clk 0:02:48.1]} 13... Qxf3
{[%clk 0:02:47.7]} 14. gxf3 {[%clk 0:02:49]} 14... f5 {[%clk 0:02:45.8]} 15. Bd2
{[%clk 0:02:38.4]} 15... Rae8 {[%clk 0:02:40.4]} 16. Bc3 {[%clk 0:02:34.1]}
16... Rf6 {[%clk 0:02:17.4]} 17. f4 {[%clk 0:02:31.1]} 17... Rfe6 {[%clk
0:02:03.2]} 18. fxe5 {[%clk 0:02:22]} 18... Bxe5 {[%clk 0:02:02.9]} 19. Bxe5
{[%clk 0:02:18.3]} 19... Rxe5 {[%clk 0:02:03]} 20. Rxe5 {[%clk 0:02:16.3]} 20...
Rxe5 {[%clk 0:02:03.1]} 21. Kg2 {[%clk 0:02:08.5]} 21... Kf7 {[%clk 0:01:52.9]}
22. Kf3 {[%clk 0:02:06.3]} 22... g5 {[%clk 0:01:52.2]} 23. d4 {[%clk 0:01:59.7]}
23... Re4 {[%clk 0:01:46]} 24. c3 {[%clk 0:01:59.7]} 24... Rh4 {[%clk 0:01:35]}
25. Kg2 {[%clk 0:01:57.9]} 25... Re4 {[%clk 0:01:32.2]} 26. Kf3 {[%clk
0:01:44.8]} 26... Rh4 {[%clk 0:01:31.8]} 27. Kg2 {[%clk 0:01:32.6]} 27... Re4
{[%clk 0:01:31.3]} 28. b4 {[%clk 0:01:23.7]} 28... Re2 {[%clk 0:01:26.2]} 29. a4
{[%clk 0:01:20.8]} 29... Rc2 {[%clk 0:01:18.2]} 30. Ra3 {[%clk 0:01:20.6]} 30...
Ke6 {[%clk 0:01:14.6]} 31. b5 {[%clk 0:01:20.5]} 31... Kd5 {[%clk 0:01:06.8]}
32. Kg3 {[%clk 0:01:10.2]} 32... Kc4 {[%clk 0:01:01.1]} 33. bxc6 {[%clk
0:01:07.9]} 33... Rxc3+ {[%clk 0:01:00.4]} 34. Rxc3+ {[%clk 0:01:07.5]} 1-0

[Event "Late-Titled-Tuesday-Blitz-March-05-2024"]
[Site "Chess.com"]
[Date "2024.03.05"]
[Round "2"]
[White "Irishchessman16"]
[Black "Fjal"]
[Result "1-0"]
[WhiteElo "2522"]
[BlackElo "2301"]
[TimeControl "180+1"]
[EndTime "14:16:37 PST"]
[Termination "Irishchessman16 won on time"]

1. e4 {[%clk 0:03:00.9]} 1... d6 {[%clk 0:03:00.1]} 2. f4 {[%clk 0:02:56]} 2...
Nf6 {[%clk 0:03:00.3]} 3. d3 {[%clk 0:02:55.1]} 3... g6 {[%clk 0:03:00.1]} 4.
Nf3 {[%clk 0:02:53.8]} 4... c5 {[%clk 0:03:00.6]} 5. Be2 {[%clk 0:02:53.6]} 5...
Nc6 {[%clk 0:03:01.3]} 6. O-O {[%clk 0:02:53.5]} 6... Bg7 {[%clk 0:03:01.9]} 7.
Qe1 {[%clk 0:02:52.5]} 7... Bg4 {[%clk 0:02:55.5]} 8. Qh4 {[%clk 0:02:47.3]}
8... Qb6 {[%clk 0:02:49.9]} 9. Kh1 {[%clk 0:02:41.9]} 9... Bxf3 {[%clk
0:02:49.1]} 10. Bxf3 {[%clk 0:02:41.6]} 10... Nd4 {[%clk 0:02:49.7]} 11. Bd1
{[%clk 0:02:40.5]} 11... h5 {[%clk 0:02:48.4]} 12. c3 {[%clk 0:02:38.6]} 12...
Nc6 {[%clk 0:02:46.4]} 13. Na3 {[%clk 0:02:33.8]} 13... Qa6 {[%clk 0:02:40.8]}
14. Rf3 {[%clk 0:02:15.7]} 14... b5 {[%clk 0:02:32.1]} 15. Nc2 {[%clk
0:02:11.9]} 15... c4 {[%clk 0:02:31.1]} 16. Be2 {[%clk 0:02:11.3]} 16... Rb8
{[%clk 0:02:22.2]} 17. dxc4 {[%clk 0:01:39.1]} 17... bxc4 {[%clk 0:02:17.7]} 18.
Ne3 {[%clk 0:01:39.1]} 18... Nxe4 {[%clk 0:02:05.8]} 19. Bxc4 {[%clk 0:01:38.2]}
19... Qa5 {[%clk 0:01:52.3]} 20. f5 {[%clk 0:01:36.9]} 20... Nf6 {[%clk
0:01:11.7]} 21. Bxf7+ {[%clk 0:01:25.4]} 21... Kxf7 {[%clk 0:01:01.2]} 22. Qc4+
{[%clk 0:01:25.2]} 22... d5 {[%clk 0:00:52.2]} 23. Qxc6 {[%clk 0:01:23.7]} 23...
Rb6 {[%clk 0:00:48.6]} 24. fxg6+ {[%clk 0:01:18.8]} 24... Kxg6 {[%clk
0:00:46.2]} 25. Qc7 {[%clk 0:01:13.5]} 25... Ng4 {[%clk 0:00:08.8]} 26. Qxe7
{[%clk 0:01:10.6]} 26... Bf6 {[%clk 0:00:03.9]} 27. Qd7 {[%clk 0:01:05.1]} 1-0